Cogmind - Beta 14 --- EXPLORER MODE // 2024.09.30 @ 22:43:14 Player: Cwaftwer Result: Destroyed by G-47 Trooper with Particle Gun Performance ------------- Evolutions (0) 0 Regions Visited (1) 200 Robots Destroyed (15) 75 Value Destroyed (267) 267 Prototype IDs (4) 80 Alien Tech Used (0) 0 Bonus (0) 0 TOTAL SCORE: 622 Bonus ------- None Cogmind --------- Core Integrity 0/250 Matter 300/300 Energy 100/100 System Corruption 0% Temperature Cool (9) Movement Core (200) Ox3 Location -10/Materials Parts ------- > --- POWER (1) -------- (None) > --- PROPULSION (2) --- (None) > --- UTILITY (2) ------ Medium Storage Unit Core Shielding > --- WEAPON (3) ------- (None) > --- INVENTORY (10) --- Structural Scanner Utility Shielding Medium Armor Plating Medium Armor Plating Medium Armor Plating Medium Armor Plating Peak State ------------ > --- POWER ------------ Light Ion Engine > --- PROPULSION ------- Light Treads Light Treads > --- UTILITY ---------- Medium Storage Unit Core Shielding > --- WEAPON ----------- Improved Light Cannon Improved Light Cannon > --- INVENTORY -------- Light Ion Engine Structural Scanner Utility Shielding Medium Armor Plating Medium Armor Plating Medium Armor Plating Medium Armor Plating Welding Torch [Rating: 10] Favorites ----------- Power Light Ion Engine Engine Light Ion Engine Propulsion Light Treads Treads Light Treads Leg Aluminum Leg Utility Medium Storage Unit Storage Medium Storage Unit Protection Core Shielding Weapon Improved Light Cannon Ballistic Cannon Improved Light Cannon Special Weapon Welding Torch Build | -11 -10 ------- Run | Yrd Mat Slots Evolved 1 | . 1 Power . | . . Propulsion . | . . Utility . | . . Weapon 1 | . 1 Parts Attached 15 | 5 10 Power 2 | 1 1 Engine 2 | 1 1 Core . | . . Reactor . | . . Propulsion 3 | 2 1 Treads 2 | 2 . Leg 1 | . 1 Wheel . | . . Hover . | . . Flight . | . . Utility 2 | 2 . Device . | . . Storage 1 | 1 . Processor . | . . Hackware . | . . Protection 1 | 1 . Artifact . | . . Weapon 8 | . 8 Energy Gun . | . . Energy Cannon . | . . Ballistic Gun . | . . Ballistic Cannon 2 | . 2 Launcher . | . . Special Weapon 6 | . 6 Impact Weapon . | . . Slashing Weapon . | . . Piercing Weapon . | . . Special Melee Weapon . | . . Unidentified Prototypes . | . . Parts Lost 8 | . 8 Power 2 | . 2 Propulsion 1 | . 1 Utility . | . . Weapon 5 | . 5 Highest Loss Streak 3 | . 3 To Critical Strikes . | . . Average Slot Usage (%) 74 | . 74 Engine 11 | . 11 Treads 18 | . 18 Leg 3 | . 3 Storage 12 | . 12 Protection 12 | . 12 Ballistic Cannon 7 | . 7 Special Weapon 8 | . 8 Peak Build Rating 10 | 5 10 Average Rating 7 | 3 7 On Entrance 2 | . 5 Naked Turns . | . . Heaviest Build 22 | 14 22 Greatest Support 40 | 40 40 Greatest Overweight (x) 1 | . 1 Average Overweight (x) . | . . Largest Inventory Capacity 10 | 10 10 Average Capacity 9 | 7 10 Most Carried 10 | 3 10 Average Carried 6 | 1 7 Final Capacity 10 | 10 10 Final Carried 6 | 2 6 Class Distribution -------------------- 96% | Hacker-Mutant 3% | Hacker-Tank Dominant Class ---------------- Hacker-Mutant | -10/Materials Resources | -11 -10 ----------- Run | Yrd Mat Matter Collected 473 | 250 223 Remotely . | . . Salvage Created 300 | . 300 Parts 25 | . 25 Haulers Intercepted . | . . Recyclers Shooed 1 | . 1 Parts Field Recycled . | . . Retrieved Matter . | . . Parts Self-Destructed . | . . Prevented . | . . Kills | -11 -10 ------- Run | Yrd Mat Combat Hostiles Destroyed 6 | . 6 Cannons 5 | . 5 Classes Destroyed 3 | . 3 Worker 2 | . 2 Builder 7 | . 7 Grunt 6 | . 6 Best Kill Streak 3 | . 3 Combat Bots Only 2 | . 2 Max Kills in Single Turn 1 | . 1 Gunslinging . | . . Exploded . | . . Melee . | . . Uniques/NPCs Destroyed . | . . Combat | -11 -10 -------- Run | Yrd Mat Hostile Shots Fired 138 | . 138 Missed 24 | . 24 Damage Taken 897 | . 897 Core 255 | . 255 Absorbed by Shields . | . . Redirected to Shielding 47 | . 47 Ignored by Resistances 565 | . 565 Core Remaining (%) 100 | 100 . Volleys Fired 106 | . 106 Largest 3 | . 3 Hottest 100 | . 100 Shots Fired 143 | . 143 Gun . | . . Cannon 32 | . 32 Launcher . | . . Special 111 | . 111 Kinetic 32 | . 32 Thermal 111 | . 111 Explosive . | . . Electromagnetic . | . . Robot Hit Streak 34 | . 34 Robot Miss Streak 3 | . 3 Penetration Max . | . . Secondary Targets . | . . Shots Hit Robots 109 | . 109 Core Hits 45 | . 45 Critical Kills . | . . Critical Parts Destroyed . | . . Critical Strikes 1 | . 1 Blast 1 | . 1 Melee Attacks . | . . Impact . | . . Slashing . | . . Piercing . | . . Sneak Attacks . | . . Combat Hostiles . | . . Follow-up Attacks . | . . Damage Inflicted 1027 | . 1027 Guns . | . . Cannons 301 | . 301 Explosions . | . . Melee . | . . Ramming 23 | . 23 Kinetic 301 | . 301 Thermal 703 | . 703 Explosive . | . . Electromagnetic . | . . Impact . | . . Slashing . | . . Piercing . | . . Highest Corruption . | . . Average Corruption . | . . Corruption Purged . | . . Corruption Blocked . | . . Overload Shots . | . . Overflow Damage 6 | . 6 Projectiles 6 | . 6 Explosions . | . . Melee . | . . Knockbacks 1 | . 1 Impact . | . . Kinetic 1 | . 1 Secondary . | . . Self-Inflicted Damage 2 | . 2 Shots . | . . Rammed 5 | . 5 Targets Rammed 19 | . 19 Kicked 14 | . 14 Crushed . | . . Highest Temperature 273 | . 273 Average Temperature 42 | . 42 Received Heat Transfer 858 | . 858 Effects 1 | . 1 Interference 1 | . 1 Siege Activations . | . . Robots Corrupted . | . . Combat Hostiles . | . . Parts Fried . | . . Impact Corruptions . | . . Robots Melted 1 | . 1 Combat Hostiles 1 | . 1 Parts Melted 5 | . 5 Heat Transferred 2875 | . 2875 Parts Sabotaged . | . . Parts Stolen . | . . Parts Stripped . | . . Power Chain Reactions . | . . Alert | -11 -10 ------- Run | Yrd Mat Peak Influence 83 | . 83 Initial . | . . Average 17 | . 18 Maximum Alert Level . | . . Low Security (%) 100 | 100 100 Level 1 . | . . Level 2 . | . . Level 3 . | . . Level 4 . | . . Level 5 . | . . High Security . | . . Max Security . | . . Squads Dispatched . | . . Investigation . | . . Extermination . | . . Reinforcement . | . . Assault . | . . Garrison . | . . Intercept . | . . Searches Triggered . | . . Construction Impeded . | . . Haulers Reinforced . | . . Active Scanning Responses . | . . Cargo Convoy Interrupts . | . . Stealth | -11 -10 --------- Run | Yrd Mat Distress Signals . | . . Communications Jammed . | . . Distress Signals . | . . Times Spotted 16 | . 16 Peak Tracking Total 4 | . 4 Tactical Retreats . | . . Traps | -11 -10 ------- Run | Yrd Mat Traps Triggered . | . . Indirectly . | . . Trap Hack Attempts . | . . Triggered . | . . Disarmed . | . . Reprogrammed . | . . Reused . | . . Traps Extracted . | . . Installed . | . . Triggered . | . . Machines | -11 -10 ---------- Run | Yrd Mat Machines Disabled . | . . Max in Single Turn . | . . Machines Repaired . | . . Machines Dismantled . | . . Machines Sabotaged . | . . Overloaded Fab Kills . | . . Hacking | -11 -10 --------- Run | Yrd Mat Machines Accessed 3 | . 3 Terminals 3 | . 3 Fabricators . | . . Repair Stations . | . . Recycling Units . | . . Scanalyzers . | . . Garrison Access . | . . Total Hacks 8 | . 8 Successful 6 | . 6 Failed 2 | . 2 Catastrophic . | . . Database Lockouts . | . . Manual 4 | . 4 Terminals 8 | . 8 Fabricators . | . . Repair Stations . | . . Recycling Units . | . . Scanalyzers . | . . Garrison Access . | . . Terminal Hacks 6 | . 6 Part Schematic 2 | . 2 Prototype ID Bank 2 | . 2 Zone Layout 2 | . 2 Fabricator Hacks . | . . Repair Station Hacks . | . . Recycling Unit Hacks . | . . Scanalyzer . | . . Garrison Access Hacks . | . . Unauthorized Hacks . | . . Terminals . | . . Fabricators . | . . Repair Stations . | . . Recycling Units . | . . Scanalyzers . | . . Garrison Access . | . . Data Cores Recovered . | . . Used . | . . Hacking Detections 1 | . 1 Full Trace Events . | . . Feedback Events . | . . Feedback Blocked . | . . Robot Schematics Acquired . | . . Robots Built . | . . Authchips . | . . Time . | . . Total Robot Build Rating . | . . Part Schematics Acquired 2 | . 2 Parts Built . | . . Authchips . | . . Time . | . . Total Part Build Rating . | . . Parts Repaired . | . . Time . | . . Parts Recycled . | . . Recycled Matter . | . . Retrieved Matter . | . . Retrieved Components . | . . Parts Scanalyzed . | . . Part Schematics Acquired . | . . Parts Damaged . | . . Bothacking | -11 -10 ------------ Run | Yrd Mat Used RIF Installer . | . . Robots Hacked . | . . Non-combat . | . . Combat . | . . Robot Hacks Applied . | . . Relay Couplers Released . | . . Fabnet Peak Effective % . | . . Robots Rewired . | . . Allies Hacked . | . . Hacks Repelled . | . . Allies | -11 -10 -------- Run | Yrd Mat Total Allies . | . . Largest Group . | . . Highest-Rated Group . | . . Highest-Rated Ally . | . . Total Orders . | . . Ally Attacks . | . . Total Damage . | . . Kills . | . . Allies Corrupted . | . . Allies Melted . | . . Intel | -11 -10 ------- Run | Yrd Mat Robot Analysis Total . | . . Derelict Logs Recovered . | . . Drone Launches . | . . Drone Recoveries . | . . Exploration | -11 -10 ------------- Run | Yrd Mat Turns Passed 1500 | 76 1424 Spaces Moved 438 | 50 388 Core 15 | 15 . Treads 297 | 35 262 Legs 126 | . 126 Wheels . | . . Hover . | . . Flight . | . . Fastest Speed 50 | 50 160 Average Speed 164 | 127 169 Slowest Speed 190 | 160 190 Overloaded Moves . | . . Propulsion Burnouts . | . . Robots Hopped . | . . Cave-ins Triggered . | . . Exploration Rate (%) 20 | 4 36 Regions Visited 1 Branch Regions . Pre-discovered Areas . | . . Known Exits Taken 1 | 1 . Unknown Exits Taken . | . . Scrap Searched . | . . Spaces Dug 2 | . 2 Terrain Destroyed 3 | . 3 Melee . | . . Projectile 3 | . 3 AOE . | . . Terrain Rammed . | . . Walls Destroyed . | . . Machines Disabled . | . . Actions | -11 -10 --------- Run | Yrd Mat Total 995 | 63 932 Wait 389 | . 389 Move 437 | 49 388 Hop . | . . Pick Up 22 | 8 14 Fast Attach . | . . Attach 14 | 5 9 Detach 1 | . 1 Swap 1 | . 1 Drop 6 | 1 5 Fire 106 | . 106 Melee . | . . Ram 5 | . 5 Kick 14 | . 14 Crush . | . . Escape Stasis . | . . Rewire . | . . Trap . | . . Miscellaneous . | . . Route ------- -11/Scrapyard -10/Materials History --------- Turn | Location | Event 41 | -11/Scrapyard | Identified exit to Materials 41 | -11/Scrapyard | Discovered exit to Materials (range 16) 77 | -11/Scrapyard | Entered Materials 77 | -10/Materials | Evolved 1 slot: Weapon x1 323 | -10/Materials | Build established: Hacker-Mutant 874 | -10/Materials | Lost 3 parts (1p2w) 1464 | -10/Materials | Core integrity fell below 50% 1483 | -10/Materials | Core integrity fell below 20% 1501 | -10/Materials | Destroyed by G-47 Trooper with Particle Gun Last Messages --------------- Mining Laser temporarily disabled. Mining Laser destroyed. Kicked G-47 Trooper out of the way. Kicked G-47 Trooper. Kicked G-47 Trooper out of the way. Kicked G-47 Trooper. G-47 Trooper heat spikes uncontrollably. G-47 Trooper overheating. Kicked G-47 Trooper. G-47 Trooper overheating. Kicked G-47 Trooper out of the way. Kicked G-47 Trooper. Kicked G-47 Trooper out of the way. Kicked G-47 Trooper. Aluminum Leg destroyed. Slammed into G-47 Trooper. Integration Channel disabled. Slammed into G-47 Trooper. G-47 Trooper heat damages Particle Gun. Slammed into G-47 Trooper. Map ----- +----------------------------------------------------+ | ?????????????????????????????????????????????????? | | ?????????????????????????????????????????????????? | | ?????????????????????????????????????????????????? | | ?????????????????????????????????????????????????? | | ?????????? ???????????????????????????????????? | | ?????????? #?????????? ?????????????????????? | | ???????? #?????????? ?????????????????????? | | ???????? #?????????# #????????????????????? | | ????????? #?????????# #????????????????????? | | ????????? #?????????# #????????????????????? | | ######## ## + #????????????????????? | | ???????# ## """ # #????????????????????? | | ???????# + """ # a #????????????????????? | | ???????# ## """ # #????????????????????? | | ???????# ## # #????????????????????? | | ########+## ########### #????????????????????? | | # # #?????????#^^^#????????????????????? | | # # ###########^^^#????????????????????? | | # # #????????????????????? | | # + #????????????????????? | | # # T%%#????????????????????? | | # ## g %#????????????????????? | | # ## %% #????????????????????? | | # ## % #????????????????????? | | ############ %% #????????????????????? | | # ^ T @ #????????????????????? | | # " %g #????????????????????? | | # "" "" #+#??????????????????? | | + ^ "" "" ########???????????? | | # """ """ ???????????? | | # ^ "" "" w ???????????? | | ## """ """ ??????????? | | ?# """ """ ??????????? | | ?# """ """ ?????????? | | ?# " " ?????????? | | ?# % % a ?????????? | | ?# ^ %% k #???????????? | | ?# ##+#######^ #???????????? | | ?# " #%% #???# ###############???????????? | | ?# """ # #???# #?????????????????????????? | | ?# "" # #???# #?????????????????????????? | | ## """ # #???# #?????????????????????????? | | "" # #???# ?????????????????????????? | | """ # "" #???###?????????????????????????? | | """ # Y" #???????????????????????????????? | | """ # "" #???????????????????????????????? | | " # #???????????????????????????????? | | # ######???????????????????????????????? | | # #????????????????????????????????????? | | # #????????????????????????????????????? | +----------------------------------------------------+ Best States ------------- Heat Dissipation 25 Energy Generation 10 Energy Capacity 125 Matter Stores 300 Matter Capacity 300 Sight Range 16 Terrain Scan Density 10 Resistance: KI 35 Resistance: TH 35 Resistance: EX 35 Resistance: EM 35 Resistance: I 35 Resistance: S 35 Resistance: P 35 Core Shielding 20 Evasion (%) 50 Recoil Reduction 2 Offensive Hacking 20 Item Schematics ----------------- Welding Torch | -10/Materials | Hacked Cargo Storage Unit | -10/Materials | Hacked Robot Schematics ------------------ None Fabricated ------------ Nothing Alien Tech Used ----------------- None Achievements -------------- None Challenges ------------ None Game ------ Seed DroneActiveMace Manual? 0 Play Time 00:14:59 Cumulative 118.4 hours Start 2024.09.30 @ 21:39:21 End 2024.09.30 @ 22:43:14 Sessions 2 Manual Loads 0 Difficulty Explorer Special Mode None Game No. 103 Rogue 77 Adventurer 1 Explorer 25 Win Type - Total 11 Types 9/0/0/2/0/0/0/0/0 Lore% 59 Gallery% 65 Achievement% 63 Wizard Run 0 Options --------- Layout 1 ASCII 0 Keyboard 0 Movement Mouse Keybinds 0 Fullscreen 1 Font 24/Smallcaps Map View 50x40 Zoom Use 0% Tactical HUD 0 Map Filters NONE Filters NONE Steam 1 RUN: 6ad4afb7-be0b-4f1c-9348-2a2f99aa5a58